bitfinex/quotes_BTCUSD_20260126
["timestamp","ask_amount","ask_price","bid_price","bid_amount"]
[1769455229682,0.70712944,88371.0,88358.0,0.02444913]
[1769455233633,0.70712944,88371.0,88365.0,0.01450069]
[1769455234060,0.03,88374.0,88365.0,0.01450069]
[1769455235082,0.03,88373.0,88365.0,0.01450069]
[1769455236195,0.68844434,88379.0,88365.0,0.01450069]
[1769455236196,0.03,88372.0,88365.0,0.01450069]
[1769455237206,0.03,88371.0,88365.0,0.01450069]
[1769455238227,0.03,88370.0,88365.0,0.01450069]
[1769455238819,0.03,88370.0,88361.0,0.60673936]
[1769455239048,0.03,88370.0,88362.0,0.06311885]
[1769455239251,0.03,88369.0,88362.0,0.06311885]
[1769455239458,0.03,88369.0,88363.0,0.66518599]
[1769455240174,0.03,88380.0,88363.0,0.66518599]
[1769455240381,0.03,88377.0,88363.0,0.66518599]
[1769455240587,0.04131516,88377.0,88363.0,0.66518599]
[1769455240807,0.03,88375.0,88363.0,0.769487]
[1769455241603,0.03,88375.0,88345.0,0.18523925]
[1769455241604,0.71169861,88373.0,88355.0,0.02444913]
[1769455241810,0.73511077,88373.0,88360.0,0.37782411]
[1769455242019,0.72301453,88371.0,88355.0,0.02444913]
[1769455242217,0.72301453,88371.0,88352.0,0.64105036]
[1769455242218,0.71169861,88369.0,88352.0,0.64105036]
[1769455242839,0.01131605,88370.0,88352.0,0.64105036]
[1769455242840,0.03,88367.0,88352.0,0.17396]
[1769455243162,0.71169861,88367.0,88352.0,0.17396]
[1769455243955,0.03,88367.0,88352.0,0.81469686]
[1769455246571,0.03,88361.0,88350.0,0.0003771]
[1769455246777,0.01131708,88362.0,88350.0,0.0003771]
[1769455246778,0.03,88359.0,88350.0,0.0003771]
[1769455246985,0.03,88356.0,88350.0,0.0003771]
[1769455247921,0.03,88355.0,88350.0,0.0003771]
[1769455248349,0.03,88353.0,88350.0,0.0003771]
[1769455248785,0.03,88353.0,88343.0,0.17396]
[1769455248786,0.67006905,88353.0,88343.0,0.17396]
[1769455249325,0.68138728,88353.0,88343.0,0.17396]
[1769455249725,0.03,88352.0,88343.0,0.17396]
[1769455250599,0.03,88352.0,88344.0,0.78760999]
[1769455250736,0.03,88351.0,88344.0,0.78760999]
[1769455250942,0.03,88351.0,88344.0,0.67600721]
[1769455251175,0.03,88351.0,88343.0,0.17396]
[1769455251831,0.03,88352.0,88343.0,0.17396]
[1769455252689,0.64006905,88358.0,88343.0,0.17396]
[1769455252951,0.03,88357.0,88344.0,0.67600721]
[1769455253278,0.03,88357.0,88348.0,0.67600721]
[1769455253481,0.03,88357.0,88349.0,0.02472192]
[1769455253868,0.06790139,88364.0,88349.0,0.02472192]
[1769455253869,0.03,88363.0,88349.0,0.02472192]
[1769455254435,0.03,88363.0,88350.0,0.37782411]
[1769455254846,0.02319734,88375.0,88353.0,0.37782411]
[1769455255076,0.11302686,88374.0,88353.0,0.67600721]
[1769455255278,0.11302686,88373.0,88356.0,0.02472192]
[1769455255476,0.11302686,88372.0,88358.0,0.67600721]
[1769455255681,0.64006905,88376.0,88359.0,0.02472192]
[1769455255883,0.03,88374.0,88359.0,0.02472192]
[1769455256079,0.03,88372.0,88359.0,0.02472192]
[1769455256487,0.03,88369.0,88359.0,0.02472192]
[1769455257639,0.03,88371.0,88359.0,0.02472192]
[1769455258019,0.04131592,88371.0,88359.0,0.02472192]
[1769455258230,0.03,88369.0,88359.0,0.02472192]
[1769455258563,0.01131605,88370.0,88351.0,0.02472192]
[1769455258564,0.03,88363.0,88351.0,0.02472192]
[1769455258697,0.03,88361.0,88351.0,0.02472192]
[1769455258900,0.03,88357.0,88340.0,0.02472192]
[1769455259102,0.03,88357.0,88345.0,0.17396]
[1769455260013,0.03,88356.0,88345.0,0.17396]
[1769455260418,0.03,88351.0,88345.0,0.17396]
[1769455261535,0.67458436,88355.0,88321.0,0.02472192]
[1769455261536,0.03,88335.0,88321.0,0.02472192]
[1769455261938,0.04132054,88335.0,88321.0,0.02472192]
[1769455262172,0.03,88333.0,88321.0,0.02472192]
[1769455263224,0.03,88332.0,88321.0,0.02472192]
[1769455263996,0.03,88332.0,88318.0,0.174]
[1769455264421,0.03,88332.0,88316.0,0.02472192]
[1769455264422,0.03,88331.0,88316.0,0.02472192]
[1769455264627,0.03,88327.0,88316.0,0.02472192]
[1769455265059,0.01132131,88329.0,88314.0,0.174]
[1769455265060,0.03,88324.0,88314.0,0.174]
[1769455265266,0.03,88320.0,88314.0,0.174]
[1769455265686,0.03,88316.0,88308.0,0.04532]
[1769455265885,0.56832085,88316.0,88308.0,0.04532]
[1769455267499,0.56832085,88316.0,88300.0,0.03922261]
[1769455267703,0.56832085,88316.0,88300.0,0.71522982]
[1769455267904,0.03,88315.0,88301.0,0.02472192]
[1769455268311,0.03,88315.0,88301.0,0.02244753]
[1769455269094,0.60263504,88316.0,88300.0,0.01450069]
[1769455269225,0.01132233,88321.0,88300.0,0.01450069]
[1769455269226,0.129,88308.0,88300.0,0.01450069]
[1769455269431,0.03,88304.0,88299.0,0.0001896]
[1769455269630,0.03,88302.0,88288.0,0.04532]
[1769455270463,0.03,88302.0,88289.0,0.70092913]
[1769455270801,0.05662418,88302.0,88289.0,0.70092913]
[1769455271023,0.01,88289.0,88283.0,0.0002808]
[1769455271226,0.03,88295.0,88280.0,0.0002]
[1769455271227,0.03,88288.0,88280.0,0.0002]
[1769455271431,0.01132413,88307.0,88281.0,0.02472192]
[1769455271645,0.17404,88306.0,88285.0,0.02472192]
[1769455271859,0.02319734,88309.0,88288.0,0.67600721]
[1769455272074,0.03,88305.0,88292.0,0.67600721]
[1769455272287,0.03,88305.0,88294.0,0.02472192]
[1769455272492,0.03,88305.0,88295.0,0.02440161]
[1769455272730,0.03,88305.0,88296.0,0.02472192]
[1769455272949,0.03,88305.0,88296.0,0.02440163]
[1769455273158,0.03,88311.0,88296.0,0.65384884]
[1769455273378,0.03,88311.0,88298.0,0.70072913]
[1769455274052,0.03,88308.0,88287.0,0.67600721]
[1769455274248,0.05319734,88308.0,88289.0,0.67600721]
[1769455274463,0.03,88306.0,88289.0,0.67600721]
[1769455275179,0.05319734,88306.0,88289.0,0.67600721]
[1769455275319,0.03,88304.0,88289.0,0.67600721]
[1769455276124,0.04132451,88304.0,88289.0,0.67600721]
[1769455276328,0.03,88298.0,88280.0,0.67620721]
[1769455276512,0.03,88294.0,88280.0,0.67620721]
[1769455276927,0.03,88294.0,88282.0,0.70072913]
[1769455277137,0.02319734,88309.0,88281.0,0.07011291]
[1769455277138,0.02319734,88309.0,88285.0,0.02472192]
[1769455277336,0.09029993,88337.0,88285.0,0.02472192]
[1769455277337,0.02319734,88317.0,88289.0,0.02472192]
[1769455277560,0.03,88316.0,88292.0,0.67600721]
[1769455277808,0.03,88316.0,88296.0,0.67600721]
[1769455278012,0.03,88314.0,88298.0,0.67600721]
[1769455278177,0.03,88314.0,88300.0,0.70072913]
[1769455278960,0.15074908,88314.0,88300.0,0.02472192]
[1769455279170,0.04132323,88314.0,88300.0,0.02472192]
[1769455279883,0.03,88314.0,88300.0,0.02472192]
[1769455280080,0.04132374,88310.0,88281.0,0.07011291]
[1769455280285,0.04132374,88310.0,88284.0,0.67849323]
[1769455280286,0.03,88310.0,88284.0,0.67849323]
[1769455280483,0.03,88310.0,88287.0,0.02307206]
[1769455280700,0.03,88310.0,88290.0,0.67849323]
[1769455280879,0.03,88310.0,88293.0,0.02307206]
[1769455281087,0.03,88309.0,88296.0,0.67849323]
[1769455281284,0.03,88307.0,88296.0,0.67849323]
[1769455281725,0.03,88307.0,88296.0,0.70156529]
[1769455281925,0.01132284,88317.0,88296.0,0.67849323]
[1769455282149,0.01132323,88314.0,88300.0,0.67849323]
[1769455282354,0.03,88313.0,88300.0,0.67849323]
[1769455282594,0.03,88313.0,88304.0,0.67849323]
[1769455282808,0.03,88313.0,88306.0,0.67849323]
[1769455283507,0.01160262,88325.0,88306.0,0.67849323]
[1769455283508,0.03,88312.0,88306.0,0.67849323]
[1769455283783,0.06793289,88323.0,88306.0,0.67849323]
[1769455283947,0.05661197,88321.0,88307.0,0.07015653]
[1769455284143,0.01132272,88318.0,88287.0,0.67849323]
[1769455284515,0.03,88308.0,88283.0,0.0002808]
[1769455284665,0.03,88306.0,88287.0,0.67849323]
[1769455284866,0.03,88306.0,88290.0,0.02307206]
[1769455285071,0.03,88306.0,88290.0,0.70156529]
[1769455285287,0.02452213,88320.0,88294.0,0.02307206]
[1769455285475,0.53190449,88340.0,88297.0,0.67849323]
[1769455285476,0.09245263,88326.0,88297.0,0.67849323]
[1769455285656,0.04132182,88325.0,88301.0,0.67849323]
[1769455285869,0.04132182,88325.0,88304.0,0.02307206]
[1769455286074,0.03,88325.0,88307.0,0.67849323]
[1769455286271,0.12674284,88326.0,88325.0,1e-08]
[1769455286499,0.13806453,88326.0,88309.0,0.02307206]
[1769455286706,0.09245234,88326.0,88310.0,0.70156529]
[1769455286859,0.03,88319.0,88310.0,0.02307206]
[1769455287061,0.03,88319.0,88294.0,0.02307206]
[1769455287062,0.03,88317.0,88294.0,0.02307206]
[1769455287268,0.03,88317.0,88297.0,0.67849323]
[1769455287518,0.03,88317.0,88299.0,0.02307206]
[1769455287749,0.03,88317.0,88299.0,0.70156529]
[1769455287924,0.03,88317.0,88300.0,0.02307206]
[1769455288077,0.03,88315.0,88301.0,0.67849323]
[1769455288648,0.03,88315.0,88302.0,0.02307206]
[1769455289232,0.03,88314.0,88302.0,0.02307206]
[1769455289603,0.03,88314.0,88285.0,0.06796125]
[1769455289604,0.03,88301.0,88284.0,0.02307206]
[1769455289968,0.03,88301.0,88288.0,0.67849323]
[1769455290315,0.03,88301.0,88288.0,0.7486638]
[1769455290859,0.03,88300.0,88287.0,0.02307206]
[1769455291219,0.03,88300.0,88284.0,0.67849323]
[1769455291565,0.03,88300.0,88283.0,0.0001404]
[1769455291566,0.03,88293.0,88283.0,0.0001404]
[1769455292148,0.03,88293.0,88284.0,0.67849323]
[1769455292316,0.01132387,88309.0,88287.0,0.02307206]
[1769455292507,0.04132348,88312.0,88290.0,0.67849323]
[1769455292711,0.04132348,88312.0,88294.0,0.67849323]
[1769455292712,0.03,88306.0,88294.0,0.67849323]
[1769455293627,0.03,88305.0,88294.0,0.67849323]
[1769455294676,0.03,88303.0,88294.0,0.67849323]
[1769455295255,0.03,88303.0,88286.0,0.67849323]
[1769455295453,0.03,88303.0,88288.0,0.67849323]
[1769455295776,0.06794613,88306.0,88288.0,0.67849323]
[1769455295777,0.03,88302.0,88288.0,0.67849323]
[1769455296344,0.03,88302.0,88288.0,0.70156529]
[1769455296756,0.03,88301.0,88288.0,0.70156529]
[1769455297159,0.03,88301.0,88289.0,0.07017057]
[1769455297363,0.01,88289.0,88283.0,0.0001404]
[1769455297562,0.03,88288.0,88283.0,0.0001404]
[1769455298260,0.03,88288.0,88283.0,0.67863363]
[1769455298466,0.03,88287.0,88283.0,0.67863363]
[1769455298654,0.01132515,88299.0,88283.0,0.67863363]
[1769455298798,0.01132515,88299.0,88284.0,0.07019057]
[1769455298998,0.08114542,88303.0,88285.0,0.67849323]
[1769455299202,0.06794874,88302.0,88285.0,0.67849323]
[1769455299405,0.02452213,88303.0,88285.0,0.70156529]
[1769455299617,0.03,88298.0,88286.0,0.02307206]
[1769455299827,0.04132528,88298.0,88286.0,0.02307206]
[1769455300328,0.03,88298.0,88286.0,0.02307206]
[1769455300542,0.03,88298.0,88286.0,0.70156529]
[1769455300743,0.03,88297.0,88286.0,0.70156529]
[1769455300918,0.03,88297.0,88280.0,0.0002]
[1769455300919,0.03,88282.0,88280.0,0.0002]
[1769455301125,0.03,88282.0,88258.0,0.0004134]
[1769455301126,0.01,88286.0,88258.0,0.0004134]
[1769455301127,0.011329,88269.0,88258.0,0.0004134]
[1769455301307,0.47306111,88290.0,88250.0,0.00223]
[1769455301308,0.00549558,88258.0,88250.0,0.00223]
[1769455301685,0.01132926,88267.0,88250.0,0.00223]
[1769455301686,0.01132939,88266.0,88253.0,0.67849323]
[1769455301811,0.06797745,88265.0,88250.0,0.02530206]
[1769455302009,0.01133016,88260.0,88252.0,0.67849323]
[1769455302211,0.03,88260.0,88257.0,1e-08]
[1769455302465,0.01132977,88263.0,88257.0,1e-08]
[1769455302466,0.03,88258.0,88257.0,1e-08]
[1769455303658,0.03,88264.0,88257.0,1e-08]
[1769455303830,0.23790709,88270.0,88257.0,1e-08]
[1769455303831,0.02452213,88282.0,88259.0,0.02307206]
[1769455304032,0.02452213,88282.0,88263.0,0.02307206]
[1769455304277,0.02452213,88282.0,88265.0,0.70156529]
[1769455304689,0.03,88281.0,88265.0,0.70156529]
[1769455304906,0.03,88269.0,88258.0,0.67849323]
[1769455305317,0.03,88269.0,88257.0,1e-08]
[1769455305526,0.03,88265.0,88257.0,1e-08]
[1769455305883,0.02452213,88267.0,88250.0,0.00223]
[1769455305884,0.03,88261.0,88250.0,0.00223]
[1769455306115,0.03,88257.0,88250.0,0.00223]
[1769455306992,0.03,88257.0,88251.0,0.67849323]
[1769455307194,0.03,88256.0,88251.0,0.67849323]
[1769455307590,0.03,88256.0,88250.0,0.00223]
[1769455308206,0.03,88262.0,88250.0,0.00223]
[1769455309542,0.02381689,88259.0,88240.0,0.65574208]
[1769455309821,0.03,88255.0,88240.0,0.65574208]
[1769455310244,0.03,88255.0,88236.0,0.0003]
[1769455310245,0.0413308,88255.0,88236.0,0.0003]
[1769455310447,0.64231805,88261.0,88253.0,0.03]
[1769455310770,0.01132964,88264.0,88244.0,0.65574208]
[1769455310771,0.02381689,88260.0,88244.0,0.65574208]
[1769455310999,0.02381689,88260.0,88245.0,0.72367414]
[1769455311223,0.02381689,88260.0,88236.0,0.65604208]
[1769455311224,0.01133054,88257.0,88236.0,0.65604208]
[1769455311408,0.05381689,88258.0,88236.0,0.65604208]
[1769455311608,0.05381689,88258.0,88240.0,0.65574208]
[1769455311870,0.05381689,88258.0,88242.0,0.65574208]
[1769455312045,0.05381689,88258.0,88244.0,0.65574208]
[1769455312529,0.05381689,88258.0,88242.0,0.02357847]
[1769455312753,0.64231805,88259.0,88258.0,0.02258963]
[1769455313184,0.0679802,88261.0,88243.0,0.65574208]
[1769455313185,0.00283834,88260.0,88243.0,0.65574208]
[1769455313326,0.00283834,88260.0,88236.0,0.0003]
[1769455313327,0.00283834,88260.0,88245.0,0.02357847]
[1769455313745,0.00283834,88260.0,88245.0,0.09151053]
[1769455313922,0.00283834,88260.0,88245.0,0.67932055]
[1769455314153,0.03283834,88260.0,88245.0,0.67932055]
[1769455314579,0.68364846,88258.0,88236.0,0.0003]
[1769455314858,0.76411759,88258.0,88237.0,0.65574208]
[1769455315067,0.03,88256.0,88239.0,0.65574208]
[1769455315341,0.03,88256.0,88242.0,0.67932055]
[1769455315473,0.03,88256.0,88243.0,0.02357847]
[1769455315681,0.03,88256.0,88244.0,0.02357847]
[1769455315898,0.03,88256.0,88244.0,0.67932055]
[1769455316102,0.03,88255.0,88244.0,0.67932055]
[1769455316727,0.00283834,88254.0,88244.0,0.65574208]
[1769455316924,0.00283834,88254.0,88246.0,0.67932055]
[1769455317134,0.03283834,88254.0,88246.0,0.67932055]
[1769455317733,0.03283834,88254.0,88246.0,0.65574208]
[1769455317956,0.06797689,88266.0,88236.0,0.0003]
[1769455317957,0.01132964,88264.0,88248.0,0.65574208]
[1769455318187,0.03,88264.0,88248.0,0.65574208]
[1769455318391,0.03,88262.0,88247.0,0.08915268]
[1769455318588,0.03,88262.0,88247.0,0.02357847]
[1769455319419,0.64231805,88264.0,88248.0,0.02357847]
[1769455319420,0.03,88261.0,88248.0,0.02357847]
[1769455320886,0.03,88258.0,88248.0,0.02357847]
[1769455321096,0.09798286,88258.0,88248.0,0.02357847]
[1769455321316,0.03,88256.0,88238.0,0.02357847]
[1769455321522,0.07265532,88256.0,88240.0,0.02357847]
[1769455321743,0.03,88256.0,88240.0,0.02357847]
[1769455322408,0.08995651,88286.0,88233.0,0.0004134]
[1769455322409,0.0113326,88241.0,88233.0,0.0004134]
[1769455322638,0.04133272,88240.0,88233.0,0.0004134]
[1769455322879,0.03,88232.0,88221.0,0.65574208]
[1769455323097,0.03,88232.0,88167.0,0.1192]
[1769455323098,0.32864815,88241.0,88183.0,0.00390898]
[1769455323099,0.03,88192.0,88183.0,0.00390898]
[1769455323319,0.01133825,88197.0,88174.0,0.55928943]
[1769455323320,0.01133953,88187.0,88174.0,0.55928943]
[1769455323537,0.01133915,88190.0,88187.0,1e-08]
[1769455323976,0.01133915,88190.0,88176.0,0.65574208]
[1769455323977,0.18549915,88190.0,88176.0,0.65574208]
[1769455324191,0.17416,88198.0,88177.0,0.02357847]
[1769455324401,0.03,88194.0,88181.0,0.02357847]
[1769455324633,0.03,88190.0,88182.0,0.65574208]
[1769455324862,0.03,88188.0,88181.0,0.02357847]
[1769455325086,0.03,88177.0,88166.0,0.02357847]
[1769455325300,0.03,88177.0,88168.0,0.02357847]
[1769455325504,0.01133979,88185.0,88163.0,0.0003015]
[1769455325505,0.06803999,88184.0,88169.0,0.65574208]
[1769455325710,0.01134018,88182.0,88171.0,0.65574208]
[1769455326120,0.03,88185.0,88171.0,0.65574208]
[1769455326323,0.03,88183.0,88165.0,0.02357847]
[1769455326535,0.03,88181.0,88168.0,0.65574208]
[1769455326764,0.03,88181.0,88168.0,0.67932055]
[1769455327210,0.05670168,88181.0,88168.0,0.67932055]
[1769455327427,0.03,88181.0,88168.0,0.67932055]
[1769455327635,0.03,88181.0,88170.0,0.65574208]
[1769455327839,0.03,88181.0,88170.0,0.67932055]
[1769455328048,0.03,88181.0,88170.0,0.65574208]
[1769455328269,0.01133902,88191.0,88173.0,0.02357847]
[1769455328480,0.03,88190.0,88177.0,0.02357847]
[1769455328689,0.03,88190.0,88178.0,0.65574208]
[1769455329520,0.03,88187.0,88178.0,0.65574208]
[1769455330057,0.03,88185.0,88178.0,0.65574208]
[1769455330883,0.01133928,88189.0,88163.0,0.0003015]
[1769455330884,0.01133889,88192.0,88179.0,0.02357847]
[1769455331183,0.07272364,88197.0,88180.0,0.67932055]
[1769455331393,0.9293405,88203.0,88180.0,0.67932055]
[1769455331394,0.03515347,88210.0,88183.0,0.02357847]
[1769455331710,0.01133735,88204.0,88188.0,0.65574208]
[1769455331919,0.02381689,88210.0,88191.0,0.02357847]
[1769455332124,0.01133594,88215.0,88195.0,0.02357847]
[1769455332285,0.03,88212.0,88198.0,0.65574208]
[1769455332495,0.04133632,88212.0,88199.0,0.72367414]
[1769455332669,0.03,88212.0,88199.0,0.72367414]
[1769455333297,0.03,88211.0,88199.0,0.72367414]
[1769455334395,0.03,88210.0,88199.0,0.72367414]
[1769455334615,0.03,88210.0,88200.0,0.07472526]
[1769455335412,0.03,88212.0,88200.0,0.07472526]
[1769455335607,0.03,88212.0,88203.0,0.65574208]
[1769455335853,0.03,88212.0,88203.0,0.67841546]
[1769455336284,0.02381689,88224.0,88203.0,0.67841546]
[1769455336476,0.03,88220.0,88203.0,0.67841546]
[1769455337269,0.03,88220.0,88206.0,0.02357847]
[1769455337446,0.03,88219.0,88209.0,0.65574208]
[1769455337663,0.03,88219.0,88211.0,0.65574208]
[1769455338170,0.02381689,88234.0,88213.0,0.65574208]
[1769455338407,0.02381689,88234.0,88215.0,0.65574208]
[1769455338610,0.02381689,88234.0,88216.0,0.06793206]
[1769455338611,0.03,88231.0,88216.0,0.06793206]
[1769455339019,0.05439868,88231.0,88216.0,0.06793206]
[1769455339361,0.05439868,88231.0,88215.0,0.65574208]
[1769455339881,0.06573256,88231.0,88215.0,0.65574208]
[1769455340086,0.05439868,88231.0,88215.0,0.65574208]
[1769455340447,0.03,88230.0,88218.0,0.02423787]
[1769455340653,0.03,88230.0,88219.0,0.694941]
[1769455340854,0.0001758,88235.0,88219.0,0.76685889]
[1769455341336,0.03,88218.0,88208.0,0.0454]
[1769455341512,0.03,88218.0,88198.0,0.70627912]
[1769455341712,0.03,88218.0,88202.0,0.694941]
[1769455341924,0.03,88218.0,88205.0,0.02423787]
[1769455342149,0.03,88218.0,88206.0,0.71917887]
[1769455342540,0.03,88217.0,88206.0,0.79109676]
[1769455342772,0.02263849,88226.0,88209.0,0.02423787]
[1769455342982,0.02263849,88233.0,88211.0,0.02423787]
[1769455343216,0.02263849,88233.0,88214.0,0.694941]
[1769455343362,0.03397044,88246.0,88214.0,0.02423787]
[1769455343572,0.03,88240.0,88218.0,0.02423787]
[1769455343791,0.03,88240.0,88221.0,0.694941]
[1769455343949,0.03,88240.0,88225.0,0.694941]
[1769455344146,0.03,88240.0,88227.0,0.71917887]
[1769455344399,0.03,88240.0,88228.0,0.07191789]
[1769455344601,0.03,88239.0,88228.0,0.07161789]
[1769455345567,0.03,88237.0,88228.0,0.07161789]
[1769455345780,0.03,88227.0,88211.0,0.02423787]
[1769455345994,0.0339716,88237.0,88211.0,0.02423787]
[1769455345995,0.47306111,88230.0,88211.0,0.71917887]
[1769455346211,0.51821736,88228.0,88211.0,0.71917887]
[1769455346415,0.51821736,88228.0,88188.0,0.01133941]
[1769455346416,0.04133491,88223.0,88205.0,0.0454]
[1769455346621,0.04133491,88223.0,88188.0,0.0680361]
[1769455346622,0.67338998,88219.0,88182.0,0.01134018]
[1769455346831,0.03,88217.0,88198.0,0.694941]
[1769455347034,0.03,88217.0,88180.0,0.02423787]
[1769455347035,0.03,88209.0,88180.0,0.02423787]
[1769455347244,0.03,88209.0,88179.0,0.05674056]
[1769455347245,0.03,88209.0,88184.0,0.02423787]
[1769455347476,0.03,88209.0,88187.0,0.694941]
[1769455347743,0.03,88199.0,88180.0,0.02423787]
[1769455348002,0.03,88199.0,88182.0,0.71917887]
[1769455348231,0.03,88199.0,88188.0,0.04082813]
[1769455348494,0.01133529,88220.0,88202.0,0.71917887]
[1769455348704,0.03,88219.0,88202.0,0.71917887]
[1769455348917,0.03,88219.0,88203.0,0.07291789]
[1769455351268,0.03,88218.0,88203.0,0.07291789]
[1769455352328,0.03,88217.0,88203.0,0.07291789]
[1769455353036,0.06800681,88227.0,88203.0,0.07291789]
[1769455353037,0.02220304,88235.0,88217.0,0.01]
[1769455353258,0.03,88234.0,88216.0,0.71917887]
[1769455353467,0.66205456,88234.0,88216.0,0.71917887]
[1769455353692,0.67338805,88234.0,88216.0,0.71917887]
[1769455353906,0.67338805,88234.0,88217.0,0.07191789]
[1769455354514,0.03,88232.0,88217.0,0.07191789]
[1769455355506,0.04133375,88232.0,88217.0,0.07191789]
[1769455355711,0.03,88230.0,88217.0,0.07191789]
[1769455357139,0.07886992,88235.0,88218.0,0.694941]
[1769455357140,0.02220304,88235.0,88218.0,0.694941]
[1769455357349,0.0384,88258.0,88200.0,0.51938799]
[1769455357350,0.01133285,88239.0,88223.0,0.71917887]
[1769455357584,0.01133337,88235.0,88223.0,0.02423787]
[1769455357804,0.64338793,88235.0,88217.0,0.71917887]
[1769455358004,0.01133349,88234.0,88218.0,0.07191789]
[1769455358214,0.63205456,88235.0,88218.0,0.07191789]
[1769455358616,0.63205456,88235.0,88218.0,0.09615576]
[1769455359924,0.63205456,88235.0,88219.0,0.02423787]
[1769455360366,0.63205456,88235.0,88219.0,0.71917887]
[1769455360565,0.63205456,88235.0,88219.0,0.694941]
[1769455360740,0.01133247,88242.0,88206.0,0.0680223]
[1769455360741,0.01133221,88244.0,88222.0,0.02423787]
[1769455360940,0.11308917,88243.0,88226.0,0.02423787]
[1769455361145,0.64338664,88245.0,88226.0,0.02423787]
[1769455361146,0.11308917,88242.0,88226.0,0.02423787]
[1769455361459,0.02263849,88247.0,88230.0,0.02423787]
[1769455361460,0.11308917,88241.0,88230.0,0.02423787]
[1769455361639,0.02263849,88247.0,88230.0,0.02423787]
[1769455361842,0.11312628,88246.0,88230.0,0.02423787]
[1769455362042,0.11312628,88245.0,88230.0,0.02423787]
[1769455362408,0.11312628,88244.0,88230.0,0.02423787]
[1769455362615,0.11312628,88243.0,88231.0,0.07910968]
[1769455362742,0.11312628,88242.0,88231.0,0.07910968]
[1769455362958,0.11312628,88241.0,88230.0,0.02423787]
[1769455363156,0.11312628,88240.0,88230.0,0.02423787]
[1769455363402,0.65469305,88246.0,88230.0,0.02423787]
[1769455363562,0.11314525,88245.0,88230.0,0.02423787]
[1769455363775,0.11314525,88244.0,88230.0,0.02423787]
[1769455363974,0.11314525,88243.0,88230.0,0.09615576]
[1769455364177,0.11314525,88242.0,88230.0,0.09615576]
[1769455364381,0.11314525,88241.0,88230.0,0.09615576]
[1769455364697,0.11314525,88240.0,88230.0,0.02423787]
[1769455364879,0.666025,88246.0,88230.0,0.02423787]
[1769455365112,0.11315983,88245.0,88230.0,0.02423787]
[1769455365312,0.11315983,88244.0,88230.0,0.02423787]
[1769455365505,0.11315983,88243.0,88230.0,0.02423787]
[1769455365712,0.11315983,88242.0,88230.0,0.02423787]
[1769455365910,0.11315983,88241.0,88230.0,0.02423787]
[1769455366115,0.11315983,88240.0,88230.0,0.02423787]
[1769455366294,0.65469305,88246.0,88230.0,0.02423787]
[1769455366496,0.11318129,88245.0,88230.0,0.02423787]
[1769455366737,0.11318129,88244.0,88230.0,0.02423787]
[1769455366914,0.11318129,88243.0,88230.0,0.02423787]
[1769455367112,0.11318129,88242.0,88230.0,0.02423787]
[1769455367338,0.03,88240.0,88230.0,0.02423787]
[1769455367494,0.65469305,88246.0,88230.0,0.02423787]
[1769455367495,0.03,88238.0,88230.0,0.02423787]
[1769455368312,0.11316635,88253.0,88232.0,0.02423787]
[1769455368672,0.03,88251.0,88235.0,0.71762627]
[1769455368885,0.03,88249.0,88237.0,0.69717784]
[1769455369099,0.03,88249.0,88238.0,0.06971778]
[1769455369287,0.03,88249.0,88239.0,0.71986311]
[1769455369490,0.03,88249.0,88240.0,0.02268527]
[1769455369648,0.03,88249.0,88242.0,0.02268527]
[1769455369846,0.0042,88256.0,88242.0,0.02268527]
[1769455370044,0.03,88254.0,88242.0,0.02268527]
[1769455370266,0.03,88252.0,88242.0,0.02268527]
[1769455370428,0.0042,88256.0,88242.0,0.02268527]
[1769455370429,0.03,88250.0,88242.0,0.02268527]
[1769455370629,0.03,88250.0,88242.0,0.71986311]
[1769455371496,0.03,88249.0,88242.0,0.71986311]
[1769455371653,0.03,88249.0,88242.0,0.79184942]
[1769455371850,0.03,88249.0,88242.0,0.02653353]
[1769455372085,0.03,88237.0,88214.0,0.69717784]
[1769455372328,0.03,88229.0,88215.0,0.02268527]
[1769455372448,0.03,88229.0,88215.0,0.81380942]
[1769455372669,0.04133439,88227.0,88215.0,0.71986311]
[1769455372872,0.04133439,88227.0,88193.0,0.0566934]
[1769455372873,0.03,88224.0,88206.0,0.02268527]
[1769455373074,0.03,88224.0,88206.0,0.71986311]
[1769455373279,0.03,88224.0,88207.0,0.79112415]
[1769455374079,0.03,88224.0,88207.0,0.69717784]
[1769455374480,0.03,88224.0,88207.0,0.71986311]
[1769455374822,0.03,88224.0,88209.0,0.71986311]
[1769455375061,0.03,88223.0,88211.0,0.69717784]
[1769455375245,0.03,88223.0,88205.0,0.04536]
[1769455375246,0.09052786,88246.0,88214.0,0.02268527]
[1769455375454,0.1131059,88245.0,88218.0,0.02268527]
[1769455375653,0.02357495,88246.0,88221.0,0.69717784]
[1769455375806,0.02357495,88246.0,88224.0,0.02268527]
[1769455376009,0.02357495,88246.0,88216.0,0.01133581]
[1769455376010,0.03,88245.0,88227.0,0.69717784]
[1769455376223,0.03,88245.0,88229.0,0.69717784]
[1769455377084,0.03,88245.0,88229.0,0.71986311]
[1769455380168,0.68335455,88248.0,88220.0,0.41228015]
[1769455380169,0.03,88243.0,88220.0,0.17424]
[1769455380399,0.03,88235.0,88220.0,0.19692527]
[1769455380583,0.03,88233.0,88220.0,0.19692527]
[1769455381548,0.03,88232.0,88221.0,0.69791963]
[1769455381750,0.03,88232.0,88221.0,0.02268527]
[1769455382651,0.03,88237.0,88221.0,0.02268527]
[1769455382854,0.05357495,88237.0,88221.0,0.02268527]
[1769455383066,0.05357495,88237.0,88208.0,0.01133684]
[1769455383067,0.7369295,88230.0,88209.0,0.17424]
[1769455383315,0.7369295,88230.0,88210.0,0.69717784]
[1769455383540,0.05357495,88230.0,88213.0,0.02268527]
[1769455383727,0.05357495,88230.0,88214.0,0.71986311]
[1769455383927,0.03,88230.0,88216.0,0.69717784]
[1769455384142,0.03,88229.0,88216.0,0.69717784]
[1769455384561,0.03,88229.0,88216.0,0.71986311]
[1769455385218,0.03,88228.0,88216.0,0.71986311]
[1769455386054,0.03,88228.0,88216.0,0.72086311]
[1769455386212,0.03,88227.0,88216.0,0.759237]